[Event "Early-Titled-Tuesday-Blitz-March-19-2024"]
[Site "Chess.com"]
[Date "2024.03.19"]
[Round "5"]
[White "The_Machine04"]
[Black "Durarbayli"]
[Result "1/2-1/2"]
[WhiteElo "2834"]
[BlackElo "2991"]
[TimeControl "180+1"]
[EndTime "8:58:14 PDT"]
[Termination "Game drawn - insufficient material"]

1. d4 {[%clk 0:03:00]} 1... Nf6 {[%clk 0:03:00.3]} 2. Nf3 {[%clk 0:03:00.2]}
2... b6 {[%clk 0:02:58.9]} 3. Nbd2 {[%clk 0:03:00.3]} 3... Bb7 {[%clk 0:02:59]}
4. e3 {[%clk 0:03:00]} 4... e6 {[%clk 0:02:56.3]} 5. Bd3 {[%clk 0:02:54.9]} 5...
d5 {[%clk 0:02:56]} 6. Ne5 {[%clk 0:02:54.4]} 6... Nbd7 {[%clk 0:02:54.2]} 7. f4
{[%clk 0:02:54.2]} 7... Be7 {[%clk 0:02:38.2]} 8. Qf3 {[%clk 0:02:53.5]} 8...
O-O {[%clk 0:02:37.4]} 9. O-O {[%clk 0:02:52.3]} 9... c5 {[%clk 0:02:34.7]} 10.
c3 {[%clk 0:02:52]} 10... a5 {[%clk 0:02:17.7]} 11. a4 {[%clk 0:02:48.7]} 11...
Ba6 {[%clk 0:02:16.8]} 12. Bxa6 {[%clk 0:02:48.9]} 12... Rxa6 {[%clk 0:02:16.9]}
13. g4 {[%clk 0:02:49.6]} 13... Nxe5 {[%clk 0:02:13.4]} 14. fxe5 {[%clk
0:02:49.2]} 14... Nd7 {[%clk 0:02:12.9]} 15. Qe2 {[%clk 0:02:49.1]} 15... Ra8
{[%clk 0:02:10.4]} 16. Nf3 {[%clk 0:02:49.4]} 16... f5 {[%clk 0:02:03.3]} 17. h3
{[%clk 0:02:47.8]} 17... Rf7 {[%clk 0:01:51.1]} 18. Bd2 {[%clk 0:02:45.6]} 18...
Qc7 {[%clk 0:01:51.4]} 19. Rf2 {[%clk 0:02:38.8]} 19... Raf8 {[%clk 0:01:51.7]}
20. Raf1 {[%clk 0:02:37.6]} 20... Qd8 {[%clk 0:01:43.9]} 21. Be1 {[%clk
0:02:33.5]} 21... f4 {[%clk 0:01:40]} 22. exf4 {[%clk 0:02:31.2]} 22... Rxf4
{[%clk 0:01:40.9]} 23. Bd2 {[%clk 0:02:30.3]} 23... R4f7 {[%clk 0:01:24.4]} 24.
b3 {[%clk 0:02:28.7]} 24... Nb8 {[%clk 0:01:23.8]} 25. Qb5 {[%clk 0:02:22.9]}
25... Qc7 {[%clk 0:01:06.7]} 26. Bg5 {[%clk 0:02:02.2]} 26... Qc6 {[%clk
0:00:42.6]} 27. Bxe7 {[%clk 0:01:53.9]} 27... Rxe7 {[%clk 0:00:42.9]} 28. dxc5
{[%clk 0:01:25.6]} 28... Qxb5 {[%clk 0:00:32.2]} 29. axb5 {[%clk 0:01:26.5]}
29... bxc5 {[%clk 0:00:32.9]} 30. Ra2 {[%clk 0:00:53.7]} 30... Ref7 {[%clk
0:00:30]} 31. Nd2 {[%clk 0:00:46.6]} 31... Ra7 {[%clk 0:00:24.9]} 32. Rxf8+
{[%clk 0:00:43.7]} 32... Kxf8 {[%clk 0:00:24.8]} 33. Nf3 {[%clk 0:00:22.6]}
33... Nd7 {[%clk 0:00:23.4]} 34. Ra4 {[%clk 0:00:16.5]} 34... Nb6 {[%clk
0:00:18.9]} 35. Ra2 {[%clk 0:00:16.7]} 35... Ke7 {[%clk 0:00:18.1]} 36. Kg2
{[%clk 0:00:13]} 36... Ra8 {[%clk 0:00:18.5]} 37. h4 {[%clk 0:00:12.8]} 37... a4
{[%clk 0:00:19.1]} 38. bxa4 {[%clk 0:00:11.8]} 38... Rxa4 {[%clk 0:00:20]} 39.
Rxa4 {[%clk 0:00:11.6]} 39... Nxa4 {[%clk 0:00:20.9]} 40. h5 {[%clk 0:00:09]}
40... h6 {[%clk 0:00:21.2]} 41. c4 {[%clk 0:00:07.7]} 41... dxc4 {[%clk
0:00:21.1]} 42. Kf2 {[%clk 0:00:07]} 42... c3 {[%clk 0:00:20.9]} 43. Ke3 {[%clk
0:00:07]} 43... c4 {[%clk 0:00:20.4]} 44. Ne1 {[%clk 0:00:07]} 44... Kd7 {[%clk
0:00:12.1]} 45. Kd4 {[%clk 0:00:07.1]} 45... Kc7 {[%clk 0:00:12.7]} 46. Kxc4
{[%clk 0:00:06.5]} 46... Kb6 {[%clk 0:00:13.3]} 47. Kb4 {[%clk 0:00:05.9]} 47...
Nc5 {[%clk 0:00:12.9]} 48. Kxc3 {[%clk 0:00:05.3]} 48... Kxb5 {[%clk 0:00:13.8]}
49. Kd4 {[%clk 0:00:04.9]} 49... Kc6 {[%clk 0:00:13.6]} 50. Nf3 {[%clk 0:00:04]}
50... Nb3+ {[%clk 0:00:14.2]} 51. Ke4 {[%clk 0:00:04]} 51... Kc5 {[%clk
0:00:13.7]} 52. g5 {[%clk 0:00:04.3]} 52... hxg5 {[%clk 0:00:13.3]} 53. Nxg5
{[%clk 0:00:05.2]} 53... Nd2+ {[%clk 0:00:12.3]} 54. Kd3 {[%clk 0:00:04.8]}
54... Nc4 {[%clk 0:00:11.2]} 55. Nxe6+ {[%clk 0:00:05.1]} 55... Kd5 {[%clk
0:00:11.7]} 56. Nc7+ {[%clk 0:00:04.4]} 56... Kxe5 {[%clk 0:00:12]} 57. Kxc4
{[%clk 0:00:04.2]} 57... Kf5 {[%clk 0:00:11.9]} 58. Ne8 {[%clk 0:00:03.8]} 58...
Kg5 {[%clk 0:00:10.9]} 59. Nxg7 {[%clk 0:00:04.2]} 59... Kh6 {[%clk 0:00:11.6]}
60. Kd5 {[%clk 0:00:03.4]} 60... Kxg7 {[%clk 0:00:11.6]} 61. Ke4 {[%clk
0:00:04.3]} 61... Kh6 {[%clk 0:00:12.5]} 62. Kf4 {[%clk 0:00:05]} 62... Kxh5
{[%clk 0:00:13.4]} 1/2-1/2

[Event "Early-Titled-Tuesday-Blitz-March-19-2024"]
[Site "Chess.com"]
[Date "2024.03.19"]
[Round "5"]
[White "Korchmar_Vasiliy"]
[Black "the_chess_child"]
[Result "0-1"]
[WhiteElo "2695"]
[BlackElo "2869"]
[TimeControl "180+1"]
[EndTime "8:58:15 PDT"]
[Termination "the_chess_child won on time"]

1. e4 {[%clk 0:03:00.9]} 1... c5 {[%clk 0:02:59.7]} 2. d4 {[%clk 0:03:00.3]}
2... cxd4 {[%clk 0:02:59.1]} 3. Qxd4 {[%clk 0:03:01.2]} 3... Nc6 {[%clk
0:02:59]} 4. Qd3 {[%clk 0:03:01.6]} 4... g6 {[%clk 0:02:54.5]} 5. Nc3 {[%clk
0:03:01.8]} 5... Bg7 {[%clk 0:02:54.1]} 6. Nf3 {[%clk 0:03:02]} 6... d6 {[%clk
0:02:54.1]} 7. Be2 {[%clk 0:03:02.5]} 7... Nf6 {[%clk 0:02:53.9]} 8. O-O {[%clk
0:03:02.3]} 8... O-O {[%clk 0:02:54]} 9. Nd5 {[%clk 0:03:02.9]} 9... Nxd5 {[%clk
0:02:36.7]} 10. exd5 {[%clk 0:03:03.8]} 10... Bf5 {[%clk 0:02:30.1]} 11. Qd1
{[%clk 0:03:03.1]} 11... Ne5 {[%clk 0:02:26.1]} 12. Nxe5 {[%clk 0:02:40.8]}
12... Bxe5 {[%clk 0:02:27]} 13. c3 {[%clk 0:02:40.8]} 13... Rc8 {[%clk 0:02:25]}
14. Be3 {[%clk 0:02:34.2]} 14... a6 {[%clk 0:02:13.9]} 15. a4 {[%clk 0:02:28]}
15... Qa5 {[%clk 0:02:12.7]} 16. Bf3 {[%clk 0:02:13.9]} 16... b5 {[%clk
0:02:02.9]} 17. axb5 {[%clk 0:02:08.8]} 17... Qxb5 {[%clk 0:02:03.8]} 18. Qd2
{[%clk 0:02:09.4]} 18... Rb8 {[%clk 0:01:58.2]} 19. Ra2 {[%clk 0:01:58.4]} 19...
Bd3 {[%clk 0:01:48.7]} 20. Re1 {[%clk 0:01:40]} 20... Bc4 {[%clk 0:01:46.9]} 21.
Be2 {[%clk 0:01:40]} 21... Qxd5 {[%clk 0:01:34.1]} 22. Bxc4 {[%clk 0:01:23.6]}
22... Qxc4 {[%clk 0:01:30.7]} 23. Rea1 {[%clk 0:01:24.1]} 23... Qb3 {[%clk
0:01:21]} 24. h4 {[%clk 0:01:16.7]} 24... h5 {[%clk 0:01:16.8]} 25. g3 {[%clk
0:01:16.9]} 25... Rfc8 {[%clk 0:01:10.6]} 26. Qd3 {[%clk 0:01:15.4]} 26... a5
{[%clk 0:01:07.2]} 27. Bc1 {[%clk 0:01:09.8]} 27... Qe6 {[%clk 0:00:51.6]} 28.
Rxa5 {[%clk 0:01:07.4]} 28... Bf6 {[%clk 0:00:43.5]} 29. Kg2 {[%clk 0:00:59.3]}
29... Kg7 {[%clk 0:00:37.6]} 30. Ra7 {[%clk 0:00:53.7]} 30... Rc5 {[%clk
0:00:33.7]} 31. R1a5 {[%clk 0:00:41.4]} 31... Rxa5 {[%clk 0:00:27.3]} 32. Rxa5
{[%clk 0:00:42.3]} 32... Qe1 {[%clk 0:00:27.3]} 33. Qe3 {[%clk 0:00:18.6]} 33...
Qd1 {[%clk 0:00:27.1]} 34. Qh6+ {[%clk 0:00:15]} 34... Kg8 {[%clk 0:00:27.1]}
35. Be3 {[%clk 0:00:07.8]} 35... Qc2 {[%clk 0:00:23.2]} 36. Ra2 {[%clk
0:00:04.1]} 36... Qe4+ {[%clk 0:00:22.7]} 37. Kh2 {[%clk 0:00:04]} 37... Qd5
{[%clk 0:00:21.6]} 38. Ra7 {[%clk 0:00:02.8]} 38... Rxb2 {[%clk 0:00:20.4]} 39.
Rc7 {[%clk 0:00:03]} 39... Rb8 {[%clk 0:00:19.9]} 40. Bd4 {[%clk 0:00:02.7]}
40... Bxd4 {[%clk 0:00:19.2]} 41. cxd4 {[%clk 0:00:03.4]} 41... Qxd4 {[%clk
0:00:19.7]} 42. Kg2 {[%clk 0:00:03]} 42... Qe4+ {[%clk 0:00:19.1]} 43. Kh2
{[%clk 0:00:03.5]} 43... Qf5 {[%clk 0:00:19.4]} 44. Qe3 {[%clk 0:00:03.2]} 44...
e6 {[%clk 0:00:18.8]} 45. Rc4 {[%clk 0:00:01.9]} 45... Qe5 {[%clk 0:00:17.1]}
46. Re4 {[%clk 0:00:01.9]} 46... Qf6 {[%clk 0:00:16.8]} 47. Rf4 {[%clk
0:00:02.2]} 47... Qe7 {[%clk 0:00:16.7]} 48. Qf3 {[%clk 0:00:02.6]} 48... d5
{[%clk 0:00:16.8]} 49. g4 {[%clk 0:00:02.8]} 49... Qxh4+ {[%clk 0:00:15.9]} 50.
Kg2 {[%clk 0:00:02.9]} 50... hxg4 {[%clk 0:00:10.9]} 51. Rxg4 {[%clk 0:00:03.8]}
51... Qh5 {[%clk 0:00:11]} 52. Qg3 {[%clk 0:00:04.4]} 52... Rb3 {[%clk
0:00:06.4]} 53. f3 {[%clk 0:00:03.5]} 53... Rb2+ {[%clk 0:00:06.4]} 54. Kg1
{[%clk 0:00:03.5]} 54... Qf5 {[%clk 0:00:07]} 55. Ra4 {[%clk 0:00:01.8]} 55...
Qb1+ {[%clk 0:00:06.9]} 0-1

[Event "Early-Titled-Tuesday-Blitz-March-19-2024"]
[Site "Chess.com"]
[Date "2024.03.19"]
[Round "5"]
[White "Evandro_Barbosa"]
[Black "Rud_Makarian"]
[Result "0-1"]
[WhiteElo "2680"]
[BlackElo "2969"]
[TimeControl "180+1"]
[EndTime "8:58:15 PDT"]
[Termination "Rud_Makarian won by resignation"]

1. e4 {[%clk 0:03:00.9]} 1... c5 {[%clk 0:02:58]} 2. Nf3 {[%clk 0:03:00]} 2...
d6 {[%clk 0:02:58.4]} 3. Bb5+ {[%clk 0:02:59]} 3... Nd7 {[%clk 0:02:58.5]} 4. d4
{[%clk 0:02:58.6]} 4... cxd4 {[%clk 0:02:59.4]} 5. Qxd4 {[%clk 0:02:58.4]} 5...
a6 {[%clk 0:03:00.3]} 6. Bxd7+ {[%clk 0:02:56.3]} 6... Bxd7 {[%clk 0:03:01.2]}
7. c4 {[%clk 0:02:56.2]} 7... Nf6 {[%clk 0:03:01.8]} 8. Bg5 {[%clk 0:02:55.7]}
8... e6 {[%clk 0:03:02.2]} 9. Nc3 {[%clk 0:02:55]} 9... Be7 {[%clk 0:03:02.8]}
10. O-O {[%clk 0:02:55]} 10... Bc6 {[%clk 0:03:02.6]} 11. Rad1 {[%clk
0:02:54.5]} 11... O-O {[%clk 0:03:03.1]} 12. Rfe1 {[%clk 0:02:50.1]} 12... Rc8
{[%clk 0:03:01.5]} 13. Bxf6 {[%clk 0:02:40.4]} 13... Bxf6 {[%clk 0:03:02.4]} 14.
Qxd6 {[%clk 0:02:40]} 14... Bxc3 {[%clk 0:02:58.9]} 15. bxc3 {[%clk 0:02:24.1]}
15... Qa5 {[%clk 0:02:44.3]} 16. Qb4 {[%clk 0:02:23.7]} 16... Qh5 {[%clk
0:02:20.8]} 17. Rd6 {[%clk 0:02:04.5]} 17... h6 {[%clk 0:02:18.4]} 18. Nd4
{[%clk 0:02:02.6]} 18... Rfd8 {[%clk 0:02:14.1]} 19. e5 {[%clk 0:01:51.9]} 19...
Qg5 {[%clk 0:01:51.9]} 20. Nxc6 {[%clk 0:01:42.6]} 20... Rxc6 {[%clk 0:01:48.1]}
21. Qxb7 {[%clk 0:00:59.8]} 21... Rcxd6 {[%clk 0:01:47.1]} 22. exd6 {[%clk
0:00:59.6]} 22... Qd2 {[%clk 0:01:47.6]} 23. Rf1 {[%clk 0:00:48.2]} 23... Qxd6
{[%clk 0:01:46.7]} 24. g3 {[%clk 0:00:46.4]} 24... a5 {[%clk 0:01:36.8]} 25. Qb5
{[%clk 0:00:45.1]} 25... Qc7 {[%clk 0:01:34.4]} 26. Rb1 {[%clk 0:00:33.1]} 26...
Rc8 {[%clk 0:01:31.5]} 27. h4 {[%clk 0:00:28.2]} 27... g6 {[%clk 0:01:23.9]} 28.
Kg2 {[%clk 0:00:26.4]} 28... Kg7 {[%clk 0:01:22.1]} 29. Rb2 {[%clk 0:00:22.9]}
29... Qxc4 {[%clk 0:01:15.9]} 30. Qxc4 {[%clk 0:00:21.8]} 30... Rxc4 {[%clk
0:01:16.1]} 31. Rb5 {[%clk 0:00:21.7]} 31... Ra4 {[%clk 0:01:14.5]} 32. Rb2
{[%clk 0:00:22.1]} 32... Kf6 {[%clk 0:01:09.8]} 33. Kf3 {[%clk 0:00:21.9]} 33...
Rc4 {[%clk 0:01:09.9]} 34. Rc2 {[%clk 0:00:20.5]} 34... Ke5 {[%clk 0:01:08.5]}
35. Ke3 {[%clk 0:00:20.9]} 35... Kd5 {[%clk 0:01:05.6]} 36. Kd3 {[%clk
0:00:21.1]} 36... e5 {[%clk 0:01:05.2]} 37. Rb2 {[%clk 0:00:19]} 37... e4+
{[%clk 0:01:03.6]} 38. Kd2 {[%clk 0:00:19.6]} 38... Ra4 {[%clk 0:01:03.8]} 39.
Ke3 {[%clk 0:00:13.7]} 39... Kc6 {[%clk 0:00:52.7]} 40. Rd2 {[%clk 0:00:10.2]}
40... f5 {[%clk 0:00:48.6]} 41. Rc2 {[%clk 0:00:08.8]} 41... Rc4 {[%clk
0:00:47.7]} 42. Kd2 {[%clk 0:00:08.3]} 42... g5 {[%clk 0:00:41.3]} 43. Rb2
{[%clk 0:00:08.7]} 43... Ra4 {[%clk 0:00:36.6]} 44. hxg5 {[%clk 0:00:07.9]}
44... hxg5 {[%clk 0:00:37.5]} 45. Ke3 {[%clk 0:00:08.5]} 45... Rc4 {[%clk
0:00:33.8]} 46. Kd2 {[%clk 0:00:08.9]} 46... f4 {[%clk 0:00:30.5]} 47. gxf4
{[%clk 0:00:08.6]} 47... gxf4 {[%clk 0:00:31.4]} 48. Rb8 {[%clk 0:00:08.8]}
48... Ra4 {[%clk 0:00:31.6]} 49. Rb2 {[%clk 0:00:07.5]} 49... Kc5 {[%clk
0:00:31.1]} 50. Rc2 {[%clk 0:00:05.1]} 50... Kc4 {[%clk 0:00:29]} 51. Rb2 {[%clk
0:00:05.7]} 51... Ra3 {[%clk 0:00:27]} 52. Rc2 {[%clk 0:00:06]} 52... a4 {[%clk
0:00:21.5]} 53. Rb2 {[%clk 0:00:04.2]} 53... Rxc3 {[%clk 0:00:21.3]} 54. Rb8
{[%clk 0:00:04.9]} 54... Rd3+ {[%clk 0:00:18]} 55. Ke2 {[%clk 0:00:03.1]} 55...
f3+ {[%clk 0:00:15.3]} 56. Ke1 {[%clk 0:00:02.8]} 56... Kc3 {[%clk 0:00:13.1]}
57. Ra8 {[%clk 0:00:01.4]} 57... Kb4 {[%clk 0:00:12.5]} 58. Rb8+ {[%clk
0:00:01.8]} 58... Ka3 {[%clk 0:00:12.5]} 59. Re8 {[%clk 0:00:02.2]} 59... Rd4
{[%clk 0:00:12.5]} 60. Ra8 {[%clk 0:00:02.5]} 60... Kxa2 {[%clk 0:00:12.8]} 0-1

[Event "Early-Titled-Tuesday-Blitz-March-19-2024"]
[Site "Chess.com"]
[Date "2024.03.19"]
[Round "5"]
[White "TitarovVasiliYouTube"]
[Black "Hongjin"]
[Result "1-0"]
[WhiteElo "2547"]
[BlackElo "2702"]
[TimeControl "180+1"]
[EndTime "8:58:17 PDT"]
[Termination "TitarovVasiliYouTube won by resignation"]

1. e4 {[%clk 0:02:53.1]} 1... c5 {[%clk 0:02:46.9]} 2. Nf3 {[%clk 0:02:52.8]}
2... e6 {[%clk 0:02:46.4]} 3. Be2 {[%clk 0:02:52.2]} 3... Nc6 {[%clk 0:02:46.2]}
4. O-O {[%clk 0:02:52.4]} 4... Nf6 {[%clk 0:02:46.6]} 5. d3 {[%clk 0:02:51.8]}
5... d5 {[%clk 0:02:46.9]} 6. Nbd2 {[%clk 0:02:51.6]} 6... Be7 {[%clk
0:02:46.8]} 7. Re1 {[%clk 0:02:51.9]} 7... O-O {[%clk 0:02:47.3]} 8. c3 {[%clk
0:02:49.6]} 8... b6 {[%clk 0:02:47.6]} 9. a4 {[%clk 0:02:49.6]} 9... Bb7 {[%clk
0:02:46.8]} 10. Bf1 {[%clk 0:02:50.2]} 10... Qc7 {[%clk 0:02:47]} 11. b3 {[%clk
0:02:31.7]} 11... dxe4 {[%clk 0:02:45.1]} 12. dxe4 {[%clk 0:02:31]} 12... Rad8
{[%clk 0:02:45.8]} 13. Qe2 {[%clk 0:02:28.7]} 13... Na5 {[%clk 0:02:42.9]} 14.
Bb2 {[%clk 0:02:20.3]} 14... Ng4 {[%clk 0:02:31.3]} 15. c4 {[%clk 0:02:09.1]}
15... Nc6 {[%clk 0:02:24.9]} 16. e5 {[%clk 0:02:00.8]} 16... Nh6 {[%clk
0:02:19.6]} 17. Ne4 {[%clk 0:01:53.7]} 17... Nf5 {[%clk 0:02:17.9]} 18. Rad1
{[%clk 0:01:44.2]} 18... Ncd4 {[%clk 0:02:14.7]} 19. Nxd4 {[%clk 0:01:43.2]}
19... Nxd4 {[%clk 0:02:12.2]} 20. Bxd4 {[%clk 0:01:09.9]} 20... Rxd4 {[%clk
0:02:13.1]} 21. Rxd4 {[%clk 0:01:07.7]} 21... cxd4 {[%clk 0:02:14]} 22. Ng3
{[%clk 0:00:57.3]} 22... Rd8 {[%clk 0:01:59.1]} 23. Rd1 {[%clk 0:00:46.1]} 23...
Bc5 {[%clk 0:01:55.2]} 24. Qe1 {[%clk 0:00:39.8]} 24... a5 {[%clk 0:01:47.3]}
25. Bd3 {[%clk 0:00:39.7]} 25... Bb4 {[%clk 0:01:46.5]} 26. Qe2 {[%clk
0:00:39.8]} 26... Bc3 {[%clk 0:01:33.8]} 27. Nh5 {[%clk 0:00:38.2]} 27... Qc5
{[%clk 0:01:20.5]} 28. f4 {[%clk 0:00:22.8]} 28... g6 {[%clk 0:00:18.4]} 29.
Nf6+ {[%clk 0:00:22.7]} 29... Kg7 {[%clk 0:00:18.8]} 30. Qg4 {[%clk 0:00:21.3]}
30... Qa3 {[%clk 0:00:13.7]} 31. Nxh7 {[%clk 0:00:19.2]} 31... Qxb3 {[%clk
0:00:11.4]} 32. Ng5 {[%clk 0:00:08.5]} 32... Rh8 {[%clk 0:00:11]} 33. Rb1 {[%clk
0:00:07]} 33... Qa2 {[%clk 0:00:10.3]} 34. h3 {[%clk 0:00:06.6]} 34... Rh4
{[%clk 0:00:08.5]} 35. Qg3 {[%clk 0:00:05.7]} 35... Rxf4 {[%clk 0:00:07.4]} 36.
Rxb6 {[%clk 0:00:04.7]} 36... Qd2 {[%clk 0:00:02.6]} 37. Nxe6+ {[%clk
0:00:04.5]} 37... Kh7 {[%clk 0:00:01.8]} 38. Ng5+ {[%clk 0:00:04]} 38... Kg7
{[%clk 0:00:01.3]} 39. Ne6+ {[%clk 0:00:01.5]} 39... Kh7 {[%clk 0:00:01.8]} 40.
Rxb7 {[%clk 0:00:01.8]} 40... Qe1+ {[%clk 0:00:01.6]} 41. Qxe1 {[%clk
0:00:01.8]} 41... Bxe1 {[%clk 0:00:02]} 42. Ng5+ {[%clk 0:00:01.9]} 42... Kh6
{[%clk 0:00:02.2]} 43. Nf3 {[%clk 0:00:02.8]} 43... Bd2 {[%clk 0:00:02]} 44. Ra7
{[%clk 0:00:02.7]} 44... Be3+ {[%clk 0:00:02.9]} 45. Kf1 {[%clk 0:00:03.1]}
45... g5 {[%clk 0:00:03.4]} 46. Ke2 {[%clk 0:00:03.2]} 46... g4 {[%clk
0:00:04.1]} 47. hxg4 {[%clk 0:00:04.1]} 47... Rxg4 {[%clk 0:00:05]} 48. Kf1
{[%clk 0:00:04.5]} 48... Rf4 {[%clk 0:00:05.1]} 49. Rxa5 {[%clk 0:00:04.1]}
49... Kh5 {[%clk 0:00:05.7]} 50. Ke2 {[%clk 0:00:04.3]} 50... Kg4 {[%clk
0:00:06]} 51. Ra6 {[%clk 0:00:03.5]} 51... Kg3 {[%clk 0:00:06]} 52. Rf6 {[%clk
0:00:03.4]} 52... Kxg2 {[%clk 0:00:06.1]} 53. Rxf4 {[%clk 0:00:03.5]} 53... Bxf4
{[%clk 0:00:07]} 54. Nxd4 {[%clk 0:00:04.4]} 54... Kg3 {[%clk 0:00:07]} 55. Nf3
{[%clk 0:00:04]} 55... Kg4 {[%clk 0:00:07.3]} 56. a5 {[%clk 0:00:04.4]} 56...
Bg5 {[%clk 0:00:07.6]} 57. a6 {[%clk 0:00:04.9]} 57... Bd8 {[%clk 0:00:08.4]}
58. a7 {[%clk 0:00:05.1]} 1-0

[Event "Early-Titled-Tuesday-Blitz-March-19-2024"]
[Site "Chess.com"]
[Date "2024.03.19"]
[Round "5"]
[White "Kacparov"]
[Black "MightyMike_009"]
[Result "1-0"]
[WhiteElo "2920"]
[BlackElo "2719"]
[TimeControl "180+1"]
[EndTime "8:58:20 PDT"]
[Termination "Kacparov won by resignation"]

1. e4 {[%clk 0:03:00.9]} 1... e5 {[%clk 0:02:59.5]} 2. Nf3 {[%clk 0:03:01.2]}
2... Nc6 {[%clk 0:02:57.7]} 3. Bc4 {[%clk 0:03:01.2]} 3... Bc5 {[%clk
0:02:57.5]} 4. c3 {[%clk 0:03:01.5]} 4... Nf6 {[%clk 0:02:57.6]} 5. d3 {[%clk
0:03:02.1]} 5... a6 {[%clk 0:02:57.8]} 6. Bb3 {[%clk 0:03:02.7]} 6... Ba7 {[%clk
0:02:58.1]} 7. Nbd2 {[%clk 0:03:03.2]} 7... d6 {[%clk 0:02:58.5]} 8. h3 {[%clk
0:03:03.8]} 8... h6 {[%clk 0:02:58.8]} 9. Nf1 {[%clk 0:03:03.5]} 9... Nh5 {[%clk
0:02:57.4]} 10. N3h2 {[%clk 0:02:54.9]} 10... Nf4 {[%clk 0:02:54.8]} 11. Bxf4
{[%clk 0:02:52.6]} 11... exf4 {[%clk 0:02:55.7]} 12. d4 {[%clk 0:02:49.4]} 12...
Qe7 {[%clk 0:02:50.9]} 13. Nd2 {[%clk 0:02:48.2]} 13... Bd7 {[%clk 0:02:21.5]}
14. Qf3 {[%clk 0:02:40.4]} 14... g5 {[%clk 0:02:15]} 15. O-O-O {[%clk
0:02:33.8]} 15... O-O-O {[%clk 0:02:13.6]} 16. Rhe1 {[%clk 0:02:32.6]} 16... h5
{[%clk 0:02:11.9]} 17. Qd3 {[%clk 0:02:07.7]} 17... g4 {[%clk 0:02:02.7]} 18.
Bd5 {[%clk 0:02:06.2]} 18... Qh4 {[%clk 0:01:42.1]} 19. Qe2 {[%clk 0:01:35.8]}
19... Rhf8 {[%clk 0:01:00.9]} 20. Rh1 {[%clk 0:01:33.3]} 20... Qg5 {[%clk
0:00:59.6]} 21. hxg4 {[%clk 0:01:30.7]} 21... hxg4 {[%clk 0:01:00.5]} 22. Bxc6
{[%clk 0:01:30.3]} 22... Bxc6 {[%clk 0:00:56.6]} 23. Qxg4+ {[%clk 0:01:29.1]}
23... Qxg4 {[%clk 0:00:56.7]} 24. Nxg4 {[%clk 0:01:30]} 24... f5 {[%clk
0:00:57]} 25. exf5 {[%clk 0:01:27.3]} 25... Bxg2 {[%clk 0:00:44.7]} 26. Rh5
{[%clk 0:01:26.5]} 26... Rde8 {[%clk 0:00:44.8]} 27. Rg1 {[%clk 0:01:23.1]}
27... Bd5 {[%clk 0:00:42.9]} 28. Kd1 {[%clk 0:01:12.4]} 28... b5 {[%clk
0:00:34.1]} 29. f3 {[%clk 0:01:08.2]} 29... Kb7 {[%clk 0:00:30.2]} 30. a3 {[%clk
0:01:03.7]} 30... a5 {[%clk 0:00:24.3]} 31. Re1 {[%clk 0:01:03]} 31... Rxe1+
{[%clk 0:00:23.3]} 32. Kxe1 {[%clk 0:01:03.9]} 32... Bf7 {[%clk 0:00:20.8]} 33.
Rh7 {[%clk 0:01:02.3]} 33... Kc6 {[%clk 0:00:19.3]} 34. Ne4 {[%clk 0:00:56.7]}
34... Bd5 {[%clk 0:00:19]} 35. f6 {[%clk 0:00:50.5]} 35... b4 {[%clk 0:00:18.9]}
36. axb4 {[%clk 0:00:49.5]} 36... axb4 {[%clk 0:00:19.8]} 37. Kd2 {[%clk
0:00:47.4]} 37... Bb6 {[%clk 0:00:20.1]} 38. Kd3 {[%clk 0:00:42.4]} 38... bxc3
{[%clk 0:00:20.3]} 39. bxc3 {[%clk 0:00:43.3]} 39... Be6 {[%clk 0:00:20.8]} 40.
Rh5 {[%clk 0:00:39]} 40... d5 {[%clk 0:00:20.1]} 41. Nef2 {[%clk 0:00:35.5]}
41... Kb7 {[%clk 0:00:18.1]} 42. Rg5 {[%clk 0:00:35.1]} 42... Bd7 {[%clk
0:00:16.8]} 43. Ne5 {[%clk 0:00:34.5]} 43... Bb5+ {[%clk 0:00:17]} 44. Kd2
{[%clk 0:00:33.1]} 44... c5 {[%clk 0:00:17.5]} 45. dxc5 {[%clk 0:00:24.9]} 45...
Bxc5 {[%clk 0:00:18.4]} 46. Nfg4 {[%clk 0:00:23.5]} 46... d4 {[%clk 0:00:11.7]}
47. f7 {[%clk 0:00:23.7]} 47... dxc3+ {[%clk 0:00:11.5]} 48. Kxc3 {[%clk
0:00:24.6]} 48... Rc8 {[%clk 0:00:10.6]} 49. Rg8 {[%clk 0:00:22.4]} 49... Bf8+
{[%clk 0:00:10.5]} 50. Kb3 {[%clk 0:00:20.3]} 50... Kb6 {[%clk 0:00:10.7]} 51.
Nf6 {[%clk 0:00:19.4]} 51... Ka5 {[%clk 0:00:10.7]} 52. Kb2 {[%clk 0:00:13.5]}
52... Rb8 {[%clk 0:00:09.2]} 53. Kc2 {[%clk 0:00:13.3]} 53... Ba4+ {[%clk
0:00:08.9]} 54. Kd3 {[%clk 0:00:13.3]} 54... Rd8+ {[%clk 0:00:07.6]} 55. Ke4
{[%clk 0:00:12.2]} 55... Bc2+ {[%clk 0:00:07.7]} 56. Kxf4 {[%clk 0:00:12.8]}
56... Bh6+ {[%clk 0:00:07.4]} 57. Kg4 {[%clk 0:00:12.1]} 57... Rd1 {[%clk
0:00:05.7]} 58. f8=Q {[%clk 0:00:11.2]} 58... Rg1+ {[%clk 0:00:06.2]} 59. Kh3
{[%clk 0:00:11.1]} 59... Bxf8 {[%clk 0:00:05.3]} 60. Rxg1 {[%clk 0:00:11.2]}
60... Bf5+ {[%clk 0:00:04.3]} 61. Kh4 {[%clk 0:00:11.1]} 61... Be7 {[%clk
0:00:04.5]} 62. Kg5 {[%clk 0:00:11.5]} 1-0